[Event "Titled Tuesday Blitz November 08 Early 2022"]
[White "Pranav, V"]
[Black "Madaminov, Mukhiddin"]
[WhiteFideId "25060783"]
[BlackFideId "14210703"]
[WhiteElo "2430"]
[BlackElo "2341"]
[Result "1-0"]
[Round "11"]
[TimeControl "180+1"]
[Date "2022.11.08"]
[WhiteClock "0:00:26"]
[BlackClock "0:00:02"]

1. e4 {[%clk 0:03:00]}  e5 {[%clk 0:03:00]} 2. Nf3 {[%clk 0:03:01]}  Nc6 {[%clk 0:03:00]} 3. Bc4 {[%clk 0:03:00]}  Bc5 {[%clk 0:02:54]} 4. c3 {[%clk 0:03:01]}  Nf6 {[%clk 0:02:55]} 5. d3 {[%clk 0:03:01]}  a6 {[%clk 0:02:54]} 6. Nbd2 {[%clk 0:03:00]}  O-O {[%clk 0:02:53]} 7. O-O {[%clk 0:02:59]}  d6 {[%clk 0:02:52]} 8. a4 {[%clk 0:02:59]}  Ba7 {[%clk 0:02:45]} 9. h3 {[%clk 0:02:59]}  Ne7 {[%clk 0:02:38]} 10. Re1 {[%clk 0:02:59]}  Ng6 {[%clk 0:02:38]} 11. Nf1 {[%clk 0:03:00]}  Nh5 {[%clk 0:02:20]} 12. d4 {[%clk 0:02:49]}  Nhf4 {[%clk 0:02:17]} 13. Bxf4 {[%clk 0:02:46]}  Nxf4 {[%clk 0:01:42]} 14. dxe5 {[%clk 0:02:46]}  Bxh3 {[%clk 0:01:43]} 15. gxh3 {[%clk 0:02:36]}  Nxh3+ {[%clk 0:01:40]} 16. Kg2 {[%clk 0:02:34]}  Qc8 {[%clk 0:01:35]} 17. e6 {[%clk 0:02:13]}  Nf4+ {[%clk 0:01:34]} 18. Kg3 {[%clk 0:02:09]}  fxe6 {[%clk 0:01:33]} 19. Ng5 {[%clk 0:01:50]}  d5 {[%clk 0:01:04]} 20. exd5 {[%clk 0:01:34]}  exd5 {[%clk 0:00:56]} 21. Bxd5+ {[%clk 0:01:32]}  Kh8 {[%clk 0:00:57]} 22. Be6 {[%clk 0:01:25]}  Bxf2+ {[%clk 0:00:54]} 23. Kh2 {[%clk 0:01:17]}  Nxe6 {[%clk 0:00:43]} 24. Rxe6 {[%clk 0:01:18]}  Rf5 {[%clk 0:00:38]} 25. Re2 {[%clk 0:00:58]}  Bc5 {[%clk 0:00:25]} 26. Rg2 {[%clk 0:00:54]}  Bd6+ {[%clk 0:00:12]} 27. Kh1 {[%clk 0:00:52]}  h6 {[%clk 0:00:10]} 28. Ne4 {[%clk 0:00:41]}  Be5 {[%clk 0:00:03]} 29. Qe2 {[%clk 0:00:32]}  Rf4 {[%clk 0:00:03]} 30. Kg1 {[%clk 0:00:30]}  Qh3 {[%clk 0:00:03]} 31. Nf2 {[%clk 0:00:29]}  Qf5 {[%clk 0:00:03]} 32. Ng3 {[%clk 0:00:29]}  Qf6 {[%clk 0:00:01]} 33. Nh5 {[%clk 0:00:29]}  Qf5 {[%clk 0:00:01]} 34. Nxf4 {[%clk 0:00:28]}  Bxf4 {[%clk 0:00:02]} 35. Nd3 {[%clk 0:00:26]}  Rf8 {[%clk 0:00:02]} 36. Nxf4 {[%clk 0:00:26]}  Qxf4 {[%clk 0:00:02]} 37. Rf1 {[%clk 0:00:26]} 1-0


[Site "https://www.chess.com"]

[Event "Titled Tuesday Blitz November 08 Early 2022"]
[White "Putnam, Liam"]
[Black "Urazayev, Arystanbek"]
[WhiteFideId "30938279"]
[BlackFideId "13709810"]
[WhiteElo "2082"]
[BlackElo "2441"]
[Result "1-0"]
[Round "11"]
[TimeControl "180+1"]
[Date "2022.11.08"]
[WhiteClock "0:00:07"]
[BlackClock "0:00:41"]

1. e4 {[%clk 0:03:00]}  c5 {[%clk 0:03:00]} 2. Nf3 {[%clk 0:03:00]}  d6 {[%clk 0:03:00]} 3. d4 {[%clk 0:02:59]}  cxd4 {[%clk 0:03:01]} 4. Nxd4 {[%clk 0:03:00]}  Nf6 {[%clk 0:03:02]} 5. Nc3 {[%clk 0:03:00]}  a6 {[%clk 0:03:02]} 6. Bd3 {[%clk 0:02:56]}  e5 {[%clk 0:03:01]} 7. Nde2 {[%clk 0:02:56]}  Nc6 {[%clk 0:02:58]} 8. O-O {[%clk 0:02:56]}  Be6 {[%clk 0:02:58]} 9. f4 {[%clk 0:02:45]}  exf4 {[%clk 0:02:58]} 10. Nxf4 {[%clk 0:02:46]}  Ne5 {[%clk 0:02:59]} 11. Kh1 {[%clk 0:02:31]}  Be7 {[%clk 0:02:58]} 12. Qe2 {[%clk 0:02:20]}  O-O {[%clk 0:02:58]} 13. Nxe6 {[%clk 0:02:20]}  fxe6 {[%clk 0:02:58]} 14. Bf4 {[%clk 0:02:18]}  Nfd7 {[%clk 0:02:57]} 15. Bc4 {[%clk 0:02:15]}  Nxc4 {[%clk 0:02:53]} 16. Qxc4 {[%clk 0:02:16]}  Nc5 {[%clk 0:02:54]} 17. a4 {[%clk 0:02:10]}  Bg5 {[%clk 0:02:26]} 18. Bxg5 {[%clk 0:01:50]}  Qxg5 {[%clk 0:02:26]} 19. b4 {[%clk 0:01:51]}  b5 {[%clk 0:02:26]} 20. axb5 {[%clk 0:01:42]}  axb5 {[%clk 0:02:27]} 21. Rxa8 {[%clk 0:01:33]}  Rxa8 {[%clk 0:02:27]} 22. Nxb5 {[%clk 0:00:53]}  Nb7 {[%clk 0:01:31]} 23. Qxe6+ {[%clk 0:00:48]}  Kh8 {[%clk 0:01:32]} 24. Qf7 {[%clk 0:00:27]}  Qd8 {[%clk 0:00:56]} 25. Qxb7 {[%clk 0:00:26]}  Rb8 {[%clk 0:00:52]} 26. Qc7 {[%clk 0:00:23]}  Qg8 {[%clk 0:00:48]} 27. Nxd6 {[%clk 0:00:22]}  h6 {[%clk 0:00:49]} 28. Nf7+ {[%clk 0:00:21]}  Kh7 {[%clk 0:00:49]} 29. Qc5 {[%clk 0:00:15]}  Qe8 {[%clk 0:00:48]} 30. Qf5+ {[%clk 0:00:14]}  Kg8 {[%clk 0:00:48]} 31. Nd6 {[%clk 0:00:13]}  Qc6 {[%clk 0:00:41]} 32. Qd5+ {[%clk 0:00:11]}  Qxd5 {[%clk 0:00:42]} 33. exd5 {[%clk 0:00:12]}  Rxb4 {[%clk 0:00:42]} 34. Rd1 {[%clk 0:00:11]}  Kf8 {[%clk 0:00:41]} 35. c4 {[%clk 0:00:11]}  Ke7 {[%clk 0:00:41]} 36. Nf5+ {[%clk 0:00:09]}  Kd7 {[%clk 0:00:41]} 37. c5 {[%clk 0:00:07]}  g6 {[%clk 0:00:41]} 38. c6+ {[%clk 0:00:08]}  Kc8 {[%clk 0:00:41]} 39. d6 {[%clk 0:00:06]}  gxf5 {[%clk 0:00:41]} 40. d7+ {[%clk 0:00:07]} 1-0


[Site "https://www.chess.com"]

[Event "Titled Tuesday Blitz November 08 Early 2022"]
[White "Reprintsev, Alexander"]
[Black "Biastoch, Bennet"]
[WhiteFideId "14100541"]
[BlackFideId "12939889"]
[WhiteElo "2230"]
[BlackElo "2221"]
[Result "0-1"]
[Round "11"]
[TimeControl "180+1"]
[Date "2022.11.09"]
[WhiteClock "0:00:04"]
[BlackClock "0:00:57"]

1. e4 {[%clk 0:02:54]}  c5 {[%clk 0:02:59]} 2. b3 {[%clk 0:02:53]}  Nf6 {[%clk 0:02:57]} 3. e5 {[%clk 0:02:53]}  Nd5 {[%clk 0:02:57]} 4. Nc3 {[%clk 0:02:52]}  Nxc3 {[%clk 0:02:55]} 5. dxc3 {[%clk 0:02:53]}  d6 {[%clk 0:02:55]} 6. Nf3 {[%clk 0:02:48]}  Bg4 {[%clk 0:02:52]} 7. Be2 {[%clk 0:02:46]}  Nc6 {[%clk 0:02:51]} 8. O-O {[%clk 0:02:26]}  e6 {[%clk 0:02:43]} 9. exd6 {[%clk 0:02:00]}  Qxd6 {[%clk 0:02:44]} 10. h3 {[%clk 0:01:58]}  Bh5 {[%clk 0:02:36]} 11. Bg5 {[%clk 0:01:54]}  h6 {[%clk 0:02:29]} 12. Bh4 {[%clk 0:01:54]}  g5 {[%clk 0:02:27]} 13. Bg3 {[%clk 0:01:55]}  Qxd1 {[%clk 0:02:26]} 14. Rfxd1 {[%clk 0:01:54]}  Bg7 {[%clk 0:02:26]} 15. Rd3 {[%clk 0:01:42]}  Rd8 {[%clk 0:02:12]} 16. Rxd8+ {[%clk 0:01:35]}  Kxd8 {[%clk 0:02:13]} 17. Rd1+ {[%clk 0:01:35]}  Kc8 {[%clk 0:02:13]} 18. c4 {[%clk 0:01:35]}  Rd8 {[%clk 0:02:06]} 19. Rxd8+ {[%clk 0:01:33]}  Kxd8 {[%clk 0:02:06]} 20. a3 {[%clk 0:01:17]}  Bb2 {[%clk 0:02:03]} 21. a4 {[%clk 0:01:11]}  Nb4 {[%clk 0:01:59]} 22. Bd6 {[%clk 0:01:04]}  b6 {[%clk 0:01:57]} 23. Bf8 {[%clk 0:01:04]}  Nxc2 {[%clk 0:01:49]} 24. Bxh6 {[%clk 0:01:03]}  f6 {[%clk 0:01:45]} 25. Bd3 {[%clk 0:00:39]}  Na1 {[%clk 0:01:37]} 26. Nd2 {[%clk 0:00:36]}  f5 {[%clk 0:01:32]} 27. Bxg5+ {[%clk 0:00:35]}  Kd7 {[%clk 0:01:31]} 28. Bf4 {[%clk 0:00:20]}  Bd1 {[%clk 0:01:27]} 29. Bb8 {[%clk 0:00:18]}  a6 {[%clk 0:01:24]} 30. h4 {[%clk 0:00:16]}  Nxb3 {[%clk 0:01:23]} 31. Nxb3 {[%clk 0:00:16]}  Bxb3 {[%clk 0:01:24]} 32. Ba7 {[%clk 0:00:12]}  Kc7 {[%clk 0:01:23]} 33. a5 {[%clk 0:00:12]}  bxa5 {[%clk 0:01:12]} 34. Bxc5 {[%clk 0:00:12]}  a4 {[%clk 0:01:12]} 35. f3 {[%clk 0:00:07]}  a3 {[%clk 0:01:12]} 36. Bxa3 {[%clk 0:00:07]}  Bxa3 {[%clk 0:01:13]} 37. g4 {[%clk 0:00:08]}  fxg4 {[%clk 0:01:09]} 38. fxg4 {[%clk 0:00:08]}  Bb2 {[%clk 0:01:10]} 39. g5 {[%clk 0:00:08]}  a5 {[%clk 0:01:10]} 40. h5 {[%clk 0:00:07]}  Kd7 {[%clk 0:01:09]} 41. h6 {[%clk 0:00:07]}  Ke7 {[%clk 0:01:09]} 42. g6 {[%clk 0:00:07]}  a4 {[%clk 0:01:07]} 43. c5 {[%clk 0:00:07]}  a3 {[%clk 0:01:07]} 44. Bb1 {[%clk 0:00:07]}  a2 {[%clk 0:01:06]} 45. Bxa2 {[%clk 0:00:07]}  Bxa2 {[%clk 0:01:07]} 46. c6 {[%clk 0:00:05]}  Bb1 {[%clk 0:00:57]} 47. c7 {[%clk 0:00:05]}  Kd7 {[%clk 0:00:57]} 48. g7 {[%clk 0:00:04]}  Bh7 {[%clk 0:00:57]} 0-1


[Site "https://www.chess.com"]

[Event "Titled Tuesday Blitz November 08 Early 2022"]
[White "Santos Flores, Alberto"]
[Black "Gurevich, Dmitry"]
[WhiteFideId "3601234"]
[BlackFideId "2000407"]
[WhiteElo "2235"]
[BlackElo "2506"]
[Result "1-0"]
[Round "11"]
[TimeControl "180+1"]
[Date "2022.11.09"]
[WhiteClock "0:00:43"]
[BlackClock "0:01:02"]

1. e4 {[%clk 0:03:00]}  c5 {[%clk 0:02:59]} 2. Nf3 {[%clk 0:02:59]}  d6 {[%clk 0:02:59]} 3. d4 {[%clk 0:02:59]}  cxd4 {[%clk 0:02:59]} 4. Nxd4 {[%clk 0:02:59]}  Nf6 {[%clk 0:02:59]} 5. Nc3 {[%clk 0:02:59]}  Nc6 {[%clk 0:02:59]} 6. Bg5 {[%clk 0:02:56]}  g6 {[%clk 0:02:59]} 7. Bxf6 {[%clk 0:02:53]}  exf6 {[%clk 0:02:59]} 8. Qd2 {[%clk 0:02:49]}  Bg7 {[%clk 0:02:59]} 9. Ndb5 {[%clk 0:02:43]}  O-O {[%clk 0:02:58]} 10. Qxd6 {[%clk 0:02:30]}  Qa5 {[%clk 0:02:55]} 11. Qc7 {[%clk 0:02:12]}  f5 {[%clk 0:02:54]} 12. Qxa5 {[%clk 0:02:10]}  Nxa5 {[%clk 0:02:53]} 13. O-O-O {[%clk 0:01:55]}  a6 {[%clk 0:02:53]} 14. Nc7 {[%clk 0:01:48]}  Ra7 {[%clk 0:02:53]} 15. N7d5 {[%clk 0:01:39]}  b5 {[%clk 0:02:46]} 16. exf5 {[%clk 0:01:33]}  Bxf5 {[%clk 0:02:45]} 17. Bd3 {[%clk 0:01:32]}  Be6 {[%clk 0:02:41]} 18. Nf4 {[%clk 0:01:28]}  Bh6 {[%clk 0:02:37]} 19. g3 {[%clk 0:01:23]}  Rc8 {[%clk 0:02:33]} 20. Kb1 {[%clk 0:01:22]}  Bxf4 {[%clk 0:02:32]} 21. gxf4 {[%clk 0:01:23]}  Rac7 {[%clk 0:02:25]} 22. h4 {[%clk 0:01:20]}  Kg7 {[%clk 0:02:19]} 23. h5 {[%clk 0:01:19]}  Nc4 {[%clk 0:02:10]} 24. Rdg1 {[%clk 0:01:15]}  Nxb2 {[%clk 0:02:01]} 25. Kxb2 {[%clk 0:01:16]}  Rxc3 {[%clk 0:01:59]} 26. f5 {[%clk 0:01:15]}  Rxd3 {[%clk 0:02:00]} 27. cxd3 {[%clk 0:01:09]}  Bxf5 {[%clk 0:01:59]} 28. hxg6 {[%clk 0:01:09]}  hxg6 {[%clk 0:02:00]} 29. Rd1 {[%clk 0:01:07]}  Re8 {[%clk 0:01:55]} 30. Rhe1 {[%clk 0:01:04]}  Rd8 {[%clk 0:01:52]} 31. d4 {[%clk 0:01:02]}  b4 {[%clk 0:01:48]} 32. d5 {[%clk 0:01:01]}  Rd6 {[%clk 0:01:47]} 33. a3 {[%clk 0:00:57]}  bxa3+ {[%clk 0:01:46]} 34. Kxa3 {[%clk 0:00:58]}  Kf6 {[%clk 0:01:45]} 35. Kb4 {[%clk 0:00:57]}  Rb6+ {[%clk 0:01:40]} 36. Kc5 {[%clk 0:00:57]}  Rb5+ {[%clk 0:01:38]} 37. Kc6 {[%clk 0:00:56]}  Rb2 {[%clk 0:01:33]} 38. Rc1 {[%clk 0:00:51]}  Rxf2 {[%clk 0:01:28]} 39. d6 {[%clk 0:00:50]}  Rd2 {[%clk 0:01:26]} 40. Red1 {[%clk 0:00:49]}  Rxd1 {[%clk 0:01:24]} 41. Rxd1 {[%clk 0:00:49]}  a5 {[%clk 0:01:09]} 42. Rf1 {[%clk 0:00:46]}  a4 {[%clk 0:01:09]} 43. d7 {[%clk 0:00:45]}  Ke7 {[%clk 0:01:02]} 44. Rxf5 {[%clk 0:00:43]} 1-0


[Site "https://www.chess.com"]

[Event "Titled Tuesday Blitz November 08 Early 2022"]
[White "Savic, Miomir"]
[Black "Goroshkov, Maksym"]
[WhiteFideId "934550"]
[BlackFideId "14142716"]
[WhiteElo "2122"]
[BlackElo "2257"]
[Result "0-1"]
[Round "11"]
[TimeControl "180+1"]
[Date "2022.11.09"]
[WhiteClock "0:00:37"]
[BlackClock "0:00:06"]

1. d4 {[%clk 0:03:00]}  Nf6 {[%clk 0:02:59]} 2. Bg5 {[%clk 0:03:00]}  Ne4 {[%clk 0:02:59]} 3. Bf4 {[%clk 0:02:59]}  g5 {[%clk 0:03:00]} 4. Bc1 {[%clk 0:02:56]}  e6 {[%clk 0:02:44]} 5. f3 {[%clk 0:02:53]}  Nd6 {[%clk 0:02:42]} 6. e4 {[%clk 0:02:53]}  g4 {[%clk 0:02:35]} 7. e5 {[%clk 0:02:50]}  Nf5 {[%clk 0:02:29]} 8. fxg4 {[%clk 0:02:50]}  Ne7 {[%clk 0:02:19]} 9. Nc3 {[%clk 0:02:46]}  d6 {[%clk 0:02:17]} 10. Ne4 {[%clk 0:02:46]}  Bg7 {[%clk 0:02:12]} 11. Bd3 {[%clk 0:02:44]}  dxe5 {[%clk 0:02:10]} 12. dxe5 {[%clk 0:02:44]}  Bxe5 {[%clk 0:02:08]} 13. Nf3 {[%clk 0:02:40]}  Bg7 {[%clk 0:02:07]} 14. Bg5 {[%clk 0:02:38]}  Nbc6 {[%clk 0:01:58]} 15. Qe2 {[%clk 0:02:34]}  Nd4 {[%clk 0:01:52]} 16. Nxd4 {[%clk 0:02:29]}  Qxd4 {[%clk 0:01:53]} 17. Rd1 {[%clk 0:02:24]}  c6 {[%clk 0:01:44]} 18. Bc4 {[%clk 0:02:21]}  Qe5 {[%clk 0:01:33]} 19. Nd6+ {[%clk 0:02:19]}  Kf8 {[%clk 0:01:32]} 20. O-O {[%clk 0:02:19]}  Qxg5 {[%clk 0:01:27]} 21. Rxf7+ {[%clk 0:02:13]}  Kg8 {[%clk 0:01:27]} 22. Nxc8 {[%clk 0:02:09]}  Nd5 {[%clk 0:00:57]} 23. Bxd5 {[%clk 0:01:56]}  cxd5 {[%clk 0:00:37]} 24. Qxe6 {[%clk 0:01:51]}  h6 {[%clk 0:00:34]} 25. Rf5+ {[%clk 0:01:48]}  Kh7 {[%clk 0:00:33]} 26. Rxg5 {[%clk 0:01:48]}  hxg5 {[%clk 0:00:33]} 27. Ne7 {[%clk 0:01:48]}  Rhe8 {[%clk 0:00:29]} 28. Qg6+ {[%clk 0:01:47]}  Kh8 {[%clk 0:00:28]} 29. Nf5 {[%clk 0:01:48]}  Bxb2 {[%clk 0:00:23]} 30. Nh6 {[%clk 0:01:42]}  Re7 {[%clk 0:00:19]} 31. Nf7+ {[%clk 0:01:41]}  Rxf7 {[%clk 0:00:20]} 32. Qxf7 {[%clk 0:01:42]}  Bg7 {[%clk 0:00:17]} 33. Rxd5 {[%clk 0:01:41]}  Rf8 {[%clk 0:00:17]} 34. Qh5+ {[%clk 0:01:32]}  Kg8 {[%clk 0:00:16]} 35. Rf5 {[%clk 0:01:31]}  Re8 {[%clk 0:00:14]} 36. h4 {[%clk 0:01:30]}  Re1+ {[%clk 0:00:14]} 37. Kh2 {[%clk 0:01:31]}  gxh4 {[%clk 0:00:13]} 38. Qe8+ {[%clk 0:01:28]}  Rxe8 {[%clk 0:00:13]} 39. Kh3 {[%clk 0:01:24]}  Re2 {[%clk 0:00:13]} 40. Kxh4 {[%clk 0:01:23]}  Rxc2 {[%clk 0:00:13]} 41. Kg5 {[%clk 0:01:18]}  Rxa2 {[%clk 0:00:12]} 42. g3 {[%clk 0:01:16]}  Ra6 {[%clk 0:00:11]} 43. Rd5 {[%clk 0:01:15]}  Rb6 {[%clk 0:00:10]} 44. Kh5 {[%clk 0:01:11]}  Kh7 {[%clk 0:00:09]} 45. g5 {[%clk 0:01:12]}  a6 {[%clk 0:00:09]} 46. Rd7 {[%clk 0:01:10]}  Rb5 {[%clk 0:00:08]} 47. g4 {[%clk 0:01:09]}  a5 {[%clk 0:00:09]} 48. Rd6 {[%clk 0:00:59]}  a4 {[%clk 0:00:08]} 49. Kh4 {[%clk 0:01:00]}  a3 {[%clk 0:00:07]} 50. g6+ {[%clk 0:01:00]}  Kg8 {[%clk 0:00:06]} 51. Rd8+ {[%clk 0:00:59]}  Bf8 {[%clk 0:00:06]} 52. Ra8 {[%clk 0:00:45]}  b6 {[%clk 0:00:06]} 53. Ra6 {[%clk 0:00:45]}  Ra5 {[%clk 0:00:06]} 54. Rxb6 {[%clk 0:00:39]}  a2 {[%clk 0:00:06]} 55. Rb8 {[%clk 0:00:37]}  a1=Q {[%clk 0:00:06]} 56. g5 {[%clk 0:00:37]}  Qh1+ {[%clk 0:00:06]} 0-1


[Site "https://www.chess.com"]

[Event "Titled Tuesday Blitz November 08 Early 2022"]
[White "Schmidt, Tobias"]
[Black "Zaragatski, Ilja"]
[WhiteFideId "1271683"]
[BlackFideId "4655192"]
[WhiteElo "2328"]
[BlackElo "2460"]
[Result "1-0"]
[Round "11"]
[TimeControl "180+1"]
[Date "2022.11.09"]
[WhiteClock "0:00:12"]
[BlackClock "0:00:07"]

1. e4 {[%clk 0:03:00]}  e6 {[%clk 0:02:58]} 2. d4 {[%clk 0:03:00]}  d5 {[%clk 0:02:58]} 3. Nc3 {[%clk 0:03:01]}  Nc6 {[%clk 0:02:58]} 4. Nf3 {[%clk 0:02:47]}  Nf6 {[%clk 0:02:57]} 5. Bd3 {[%clk 0:02:43]}  Nb4 {[%clk 0:02:56]} 6. Bb5+ {[%clk 0:02:27]}  c6 {[%clk 0:02:50]} 7. e5 {[%clk 0:02:27]}  cxb5 {[%clk 0:02:31]} 8. exf6 {[%clk 0:02:19]}  Qxf6 {[%clk 0:02:15]} 9. Nxb5 {[%clk 0:02:18]}  Qd8 {[%clk 0:02:13]} 10. Bf4 {[%clk 0:02:12]}  Na6 {[%clk 0:02:13]} 11. O-O {[%clk 0:02:04]}  Be7 {[%clk 0:02:13]} 12. b3 {[%clk 0:01:58]}  O-O {[%clk 0:02:11]} 13. c4 {[%clk 0:01:59]}  Bd7 {[%clk 0:01:58]} 14. Rc1 {[%clk 0:01:50]}  dxc4 {[%clk 0:01:55]} 15. bxc4 {[%clk 0:01:47]}  Bxb5 {[%clk 0:01:41]} 16. cxb5 {[%clk 0:01:46]}  Nb4 {[%clk 0:01:42]} 17. Qb3 {[%clk 0:01:38]}  Nd5 {[%clk 0:01:41]} 18. Be5 {[%clk 0:01:34]}  Qa5 {[%clk 0:01:31]} 19. Rc4 {[%clk 0:01:29]}  Rac8 {[%clk 0:01:28]} 20. Rfc1 {[%clk 0:01:28]}  Rxc4 {[%clk 0:01:26]} 21. Rxc4 {[%clk 0:01:29]}  h6 {[%clk 0:01:21]} 22. g3 {[%clk 0:01:25]}  Rd8 {[%clk 0:01:08]} 23. Qa4 {[%clk 0:00:59]}  Qxa4 {[%clk 0:00:55]} 24. Rxa4 {[%clk 0:00:59]}  f6 {[%clk 0:00:44]} 25. Bf4 {[%clk 0:00:58]}  Nxf4 {[%clk 0:00:43]} 26. gxf4 {[%clk 0:00:59]}  Ra8 {[%clk 0:00:41]} 27. Nd2 {[%clk 0:00:43]}  Bd6 {[%clk 0:00:26]} 28. Nc4 {[%clk 0:00:43]}  Bxf4 {[%clk 0:00:25]} 29. Nb6 {[%clk 0:00:43]}  Rd8 {[%clk 0:00:16]} 30. Rxa7 {[%clk 0:00:43]}  Rxd4 {[%clk 0:00:15]} 31. Rxb7 {[%clk 0:00:43]}  Rd2 {[%clk 0:00:14]} 32. a4 {[%clk 0:00:42]}  Be5 {[%clk 0:00:14]} 33. Nc4 {[%clk 0:00:36]}  Rd1+ {[%clk 0:00:13]} 34. Kg2 {[%clk 0:00:36]}  Bd4 {[%clk 0:00:14]} 35. Rd7 {[%clk 0:00:34]}  e5 {[%clk 0:00:14]} 36. b6 {[%clk 0:00:30]}  Rb1 {[%clk 0:00:13]} 37. b7 {[%clk 0:00:30]}  Kh7 {[%clk 0:00:13]} 38. a5 {[%clk 0:00:29]}  Rb4 {[%clk 0:00:12]} 39. a6 {[%clk 0:00:28]}  Ba7 {[%clk 0:00:13]} 40. Na5 {[%clk 0:00:24]}  Rb6 {[%clk 0:00:11]} 41. Nc4 {[%clk 0:00:13]}  Rxa6 {[%clk 0:00:10]} 42. Ne3 {[%clk 0:00:13]}  Rb6 {[%clk 0:00:08]} 43. Nf5 {[%clk 0:00:13]}  Kg6 {[%clk 0:00:08]} 44. Ne7+ {[%clk 0:00:11]}  Kg5 {[%clk 0:00:07]} 45. Nc8 {[%clk 0:00:12]} 1-0


[Site "https://www.chess.com"]

[Event "Titled Tuesday Blitz November 08 Early 2022"]
[White "Shimanov, Aleksandr"]
[Black "Omariev, Maksim"]
[WhiteFideId "4198603"]
[BlackFideId "4193423"]
[WhiteElo "2605"]
[BlackElo "2440"]
[Result "1-0"]
[Round "11"]
[TimeControl "180+1"]
[Date "2022.11.09"]
[WhiteClock "0:00:20"]
[BlackClock "0:00:03"]

1. b4 {[%clk 0:02:48]}  h5 {[%clk 0:02:56]} 2. Bb2 {[%clk 0:02:44]}  h4 {[%clk 0:02:57]} 3. e4 {[%clk 0:02:42]}  d5 {[%clk 0:02:57]} 4. e5 {[%clk 0:02:42]}  h3 {[%clk 0:02:57]} 5. g3 {[%clk 0:02:40]}  Bf5 {[%clk 0:02:55]} 6. d3 {[%clk 0:02:38]}  e6 {[%clk 0:02:55]} 7. a3 {[%clk 0:02:38]}  c5 {[%clk 0:02:51]} 8. c3 {[%clk 0:02:36]}  Nd7 {[%clk 0:02:47]} 9. Nf3 {[%clk 0:02:36]}  Qc7 {[%clk 0:02:44]} 10. d4 {[%clk 0:02:34]}  cxd4 {[%clk 0:01:47]} 11. cxd4 {[%clk 0:02:35]}  Rc8 {[%clk 0:01:35]} 12. Nc3 {[%clk 0:02:33]}  Nh6 {[%clk 0:01:31]} 13. Rc1 {[%clk 0:02:31]}  Qd8 {[%clk 0:01:20]} 14. Be2 {[%clk 0:02:29]}  Be7 {[%clk 0:01:20]} 15. O-O {[%clk 0:02:28]}  O-O {[%clk 0:01:16]} 16. Na4 {[%clk 0:02:22]}  Be4 {[%clk 0:01:02]} 17. Nc5 {[%clk 0:02:13]}  Bxf3 {[%clk 0:00:57]} 18. Bxf3 {[%clk 0:02:11]}  b6 {[%clk 0:00:51]} 19. Nd3 {[%clk 0:02:08]}  Bg5 {[%clk 0:00:45]} 20. Rxc8 {[%clk 0:02:01]}  Qxc8 {[%clk 0:00:46]} 21. Be2 {[%clk 0:01:59]}  Qc6 {[%clk 0:00:36]} 22. f4 {[%clk 0:01:58]}  Be7 {[%clk 0:00:37]} 23. Qd2 {[%clk 0:01:58]}  Nf5 {[%clk 0:00:33]} 24. Rc1 {[%clk 0:01:56]}  Qb7 {[%clk 0:00:34]} 25. Bg4 {[%clk 0:01:54]}  Rc8 {[%clk 0:00:30]} 26. Bxh3 {[%clk 0:01:54]}  Nb8 {[%clk 0:00:19]} 27. b5 {[%clk 0:01:43]}  Nd7 {[%clk 0:00:15]} 28. Ne1 {[%clk 0:01:39]}  Nf8 {[%clk 0:00:12]} 29. Bf1 {[%clk 0:01:39]}  Rc7 {[%clk 0:00:10]} 30. Nf3 {[%clk 0:01:30]}  Qc8 {[%clk 0:00:10]} 31. a4 {[%clk 0:01:29]}  Ng6 {[%clk 0:00:09]} 32. Bd3 {[%clk 0:01:29]}  Rxc1+ {[%clk 0:00:07]} 33. Qxc1 {[%clk 0:01:29]}  Qxc1+ {[%clk 0:00:06]} 34. Bxc1 {[%clk 0:01:30]}  Bb4 {[%clk 0:00:05]} 35. Kf2 {[%clk 0:01:25]}  Nge7 {[%clk 0:00:04]} 36. g4 {[%clk 0:01:24]}  Nh6 {[%clk 0:00:04]} 37. h3 {[%clk 0:01:24]}  Kf8 {[%clk 0:00:03]} 38. Be3 {[%clk 0:01:23]}  Ke8 {[%clk 0:00:03]} 39. Nh4 {[%clk 0:01:21]}  g6 {[%clk 0:00:03]} 40. f5 {[%clk 0:01:21]}  Nhg8 {[%clk 0:00:03]} 41. f6 {[%clk 0:01:21]}  Nc8 {[%clk 0:00:03]} 42. g5 {[%clk 0:01:21]}  Kd7 {[%clk 0:00:03]} 43. Kf3 {[%clk 0:01:18]}  Bc3 {[%clk 0:00:02]} 44. Kg4 {[%clk 0:01:18]}  Ke8 {[%clk 0:00:03]} 45. Ng2 {[%clk 0:01:11]}  Kf8 {[%clk 0:00:03]} 46. h4 {[%clk 0:01:11]}  Ke8 {[%clk 0:00:02]} 47. Nf4 {[%clk 0:01:11]}  Kf8 {[%clk 0:00:02]} 48. Bxg6 {[%clk 0:01:02]}  fxg6 {[%clk 0:00:02]} 49. Nxg6+ {[%clk 0:01:03]}  Kf7 {[%clk 0:00:02]} 50. Nf4 {[%clk 0:01:03]}  Nge7 {[%clk 0:00:02]} 51. fxe7 {[%clk 0:00:57]}  Nxe7 {[%clk 0:00:03]} 52. h5 {[%clk 0:00:58]}  Nf5 {[%clk 0:00:04]} 53. g6+ {[%clk 0:00:58]}  Ke7 {[%clk 0:00:04]} 54. Bf2 {[%clk 0:00:55]}  Bxd4 {[%clk 0:00:04]} 55. g7 {[%clk 0:00:40]}  Kf7 {[%clk 0:00:05]} 56. Bxd4 {[%clk 0:00:30]}  Nxd4 {[%clk 0:00:04]} 57. h6 {[%clk 0:00:31]}  Nf5 {[%clk 0:00:04]} 58. Kg5 {[%clk 0:00:31]}  d4 {[%clk 0:00:03]} 59. Nxe6 {[%clk 0:00:19]}  d3 {[%clk 0:00:03]} 60. Kxf5 {[%clk 0:00:19]}  d2 {[%clk 0:00:04]} 61. Ng5+ {[%clk 0:00:20]}  Ke8 {[%clk 0:00:03]} 62. g8=Q+ {[%clk 0:00:20]}  Kd7 {[%clk 0:00:03]} 63. Qd5+ {[%clk 0:00:20]}  Kc7 {[%clk 0:00:03]} 64. Ne6+ {[%clk 0:00:20]} 1-0


[Site "https://www.chess.com"]